fUST/lending_fUST_20240212
["ID","MTS","AMOUNT","RATE_DAILY","PERIOD"]
[313784330,1707724238884,-673.07,0.00019654,2]
[313784332,1707724238893,-500.0,0.00019654,2]
[313784334,1707724238902,-500.0,0.00019658,2]
[313784336,1707724238911,-500.0,0.00019658,2]
[313784338,1707724238920,-500.0,0.00019658,2]
[313784340,1707724238929,-500.0,0.00019659,2]
[313784342,1707724238938,-500.0,0.00019659,2]
[313784344,1707724238947,-500.0,0.00019659,2]
[313784346,1707724238956,-500.0,0.00019659,2]
[313784348,1707724238965,-500.0,0.00019659,2]
[313784349,1707724238975,-500.0,0.00019659,2]
[313784352,1707724238984,-500.0,0.00019659,2]
[313784354,1707724238994,-506.19162172,0.00019659,2]
[313784356,1707724239003,-681.33,0.00019659,2]
[313784358,1707724239012,-500.0,0.00019659,2]
[313784360,1707724239022,-1491.01,0.00019659,2]
[313784362,1707724239030,-500.0,0.00019659,2]
[313784364,1707724239040,-2359.63,0.00019659,2]
[313784366,1707724239049,-500.0,0.00019659,2]
[313784368,1707724239058,-500.0,0.00019659,2]
[313784370,1707724239067,-2419.42067196,0.0001966,2]
[313784372,1707724239076,-592.25257319,0.00019661,2]
[313784374,1707724239085,-500.0,0.00019662,2]
[313784375,1707724239095,-618.57,0.00019662,2]
[313784377,1707724239104,-500.0,0.00019662,2]
[313784379,1707724239113,-500.0,0.00019662,2]
[313784382,1707724239122,-500.0,0.00019662,2]
[313784384,1707724239131,-457.66728586,0.00019662,2]
[313784385,1707724239141,-500.0,0.00019662,2]
[313784387,1707724239150,-237.52081382,0.00019662,2]
[313784389,1707724239159,-500.0,0.00019662,2]
[313784391,1707724239168,-500.0,0.00019662,2]
[313784393,1707724239177,-500.0,0.00019662,2]
[313784395,1707724239186,-500.0,0.00019662,2]
[313784397,1707724239195,-500.0,0.00019662,2]
[313784399,1707724239204,-500.0,0.00019662,2]
[313784401,1707724239214,-500.0,0.00019662,2]
[313784403,1707724239223,-500.0,0.00019662,2]
[313784405,1707724239232,-751.58,0.00019662,2]
[313784407,1707724239242,-500.0,0.00019662,2]
[313784409,1707724239251,-500.0,0.00019662,2]
[313784411,1707724239260,-500.0,0.00019662,2]
[313784413,1707724239269,-500.0,0.00019662,2]
[313784415,1707724239278,-500.0,0.00019662,2]
[313784417,1707724239287,-500.0,0.00019662,2]
[313784419,1707724239296,-500.0,0.00019662,2]
[313784421,1707724239305,-500.0,0.00019662,2]
[313784423,1707724239315,-540.55,0.00019662,2]
[313784426,1707724239326,-500.0,0.00019662,2]
[313784428,1707724239335,-756.01,0.00019662,2]
[313784430,1707724239344,-500.0,0.00019662,2]
[313784431,1707724239353,-643.72,0.00019662,2]
[313784433,1707724239363,-500.0,0.00019662,2]
[313784435,1707724239372,-500.0,0.00019662,2]
[313784437,1707724239382,-500.0,0.00019662,2]
[313784439,1707724239391,-500.0,0.00019662,2]
[313784441,1707724239400,-500.0,0.00019662,2]
[313784443,1707724239409,-1703.29133917,0.00019663,2]
[313784445,1707724239421,-155.12844632,0.00019663,2]
[313784447,1707724239430,-233.57239874,0.00019663,2]
[313784449,1707724239440,-611.59803422,0.00019664,2]
[313784451,1707724239449,-181.98222898,0.00019664,2]
[313784453,1707724239459,-4299.33543434,0.00019664,2]
[313784455,1707724239468,-500.0,0.00019665,2]
[313784457,1707724239478,-500.0,0.00019674,2]
[313784459,1707724239488,-200.0,0.00019814,2]
[313784461,1707724239497,-3715.24,0.00019927,2]
[313784463,1707724239508,-500.0,0.00019928,2]
[313784465,1707724239517,-3727.95,0.00019928,2]
[313784467,1707724239526,-7012.64,0.00019928,2]
[313784470,1707724239536,-500.0,0.00019928,2]
[313784472,1707724239545,-500.0,0.00019928,2]
[313784474,1707724239554,-500.0,0.00019928,2]
[313784476,1707724239563,-673.07,0.00019928,2]
[313784477,1707724239572,-500.0,0.00019932,2]
[313784479,1707724239581,-230.79968423,0.00019933,2]
[313784482,1707724239594,-269.20031577,0.00019933,2]
[313784484,1707724239603,-500.0,0.00019933,2]
[313784486,1707724239612,-387.44290603,0.00019933,2]
[313784701,1707724241815,-293.88709397,0.00019933,2]
[313784702,1707724241825,-500.0,0.00019933,2]
[313784703,1707724241834,-1020.04013338,0.00019933,2]
[313784704,1707724241846,-470.96986662,0.00019933,2]
[313784705,1707724241854,-420.67758039,0.00019933,2]
[313784706,1707724241869,-378.79359255,0.00019933,2]
[313784707,1707724241881,-261.546,0.00019933,2]
[313786270,1707724264721,154.8915759,0.00017941,3]
[313794572,1707724406144,-5000000.0,0.00040922,60]
[313794577,1707724518919,-2469959.79656902,0.00040892,60]
[313794578,1707724518944,-3000.0,0.00040892,60]
[313794579,1707724518966,-1527040.20343098,0.00040892,35]
[313794847,1707725431768,-463.7665836,0.00018654,2]
[313794950,1707725437951,-166.666666,0.00019178,2]
[313794952,1707725437960,-166.666666,0.00019627,2]
[313794954,1707725437969,-745.34,0.00019648,2]
[313794956,1707725437978,-500.0,0.00019648,2]
[313794958,1707725437987,-639.3,0.00019648,2]
[313794960,1707725437996,-640.83624213,0.00019655,2]
[313794962,1707725438005,-3715.30488637,0.00019655,2]
[313794977,1707725438126,-25.12858292,0.00019656,2]
[313795079,1707725442862,-264.89267456,0.00019656,2]
[313795080,1707725442874,-781.20470754,0.00019656,2]
[313795081,1707725442970,-675.57622883,0.00019656,2]
[313795082,1707725442979,-503.3356547,0.00019656,2]
[313795108,1707725762613,1544.0,0.000255,30]
[313795127,1707726390287,-154.87609912,0.00018386,2]
[313795128,1707726390312,-24900.0,0.00018387,2]
[313795129,1707726390341,-193.619591,0.00018485,2]
[313795130,1707726390365,-169.10068,0.00019178,2]
[313795131,1707726390387,-166.666666,0.00019178,2]
[313795132,1707726390410,-312.07028377,0.00019403,2]
[313795133,1707726390434,-312.07028377,0.00019442,2]
[313795134,1707726390457,-8739.69,0.00019456,2]
[313795135,1707726390479,-603.24422199,0.00019456,2]
[313795136,1707726390502,-500.0,0.00019456,2]
[313795137,1707726390525,-500.0,0.00019456,2]
[313795138,1707726390548,-500.0,0.00019456,2]
[313795139,1707726390573,-5034.86,0.00019456,2]
[313795140,1707726390733,-500.0,0.00019456,2]
[313795141,1707726390759,-500.0,0.00019456,2]
[313795142,1707726390783,-500.0,0.00019456,2]
[313795143,1707726390807,-500.0,0.00019456,2]
[313795144,1707726390830,-500.0,0.00019456,2]
[313795145,1707726390855,-4610.44,0.00019456,2]
[313795146,1707726390879,-867.6,0.00019456,2]
[313795147,1707726390902,-506.39276646,0.00019456,2]
[313795148,1707726390926,-500.0,0.00019456,2]
[313795149,1707726390949,-18730.82835107,0.00019456,2]
[313795150,1707726390972,-13079.39,0.0001946,3]
[313795151,1707726390999,-15695.27,0.0001947,3]
[313795152,1707726391022,-312.07028377,0.0001948,2]
[313795153,1707726391047,-200.0,0.00019503,2]
[313795154,1707726400119,500.0,0.00019456,2]
[313795155,1707726401675,411.81077305,0.00019456,2]
[313795301,1707726638043,-500.0,0.00019456,2]
[313795302,1707726638052,-500.0,0.00019456,2]
[313795303,1707726638062,-2262.62879005,0.00019456,2]
[313795305,1707726638149,-6112.91120995,0.00019456,2]
[313795306,1707726638159,-649.03874586,0.00019456,2]
[313795307,1707726638168,-1944.79,0.00019456,2]
[313795308,1707726638178,-500.0,0.00019456,2]
[313795309,1707726638187,-3126.35,0.00019456,2]
[313795311,1707726638196,-500.0,0.00019456,2]
[313795313,1707726638205,-500.0,0.00019456,2]
[313795315,1707726638214,-687.47,0.00019456,2]
[313795317,1707726638224,-4418.33,0.00019456,2]
[313795319,1707726638233,-500.0,0.00019456,2]
[313795321,1707726638242,-500.0,0.00019456,2]
[313795323,1707726638251,-569.23,0.00019456,2]
[313795325,1707726638262,-500.0,0.00019456,2]
[313795327,1707726638271,-500.0,0.00019456,2]
[313795329,1707726638280,-588.18922695,0.00019456,2]
[313795331,1707726638289,-500.0,0.00019456,2]
[313795333,1707726638298,-571.44,0.00019456,2]
[313795335,1707726638307,-500.0,0.00019456,2]
[313795337,1707726638316,-500.0,0.00019456,2]
[313795339,1707726638326,-156.0351419,0.00019545,2]
[313795341,1707726638335,-155.57829629,0.00019556,2]
[313795343,1707726638344,-166.666666,0.00019627,2]
[313795345,1707726638353,-156.03514188,0.0001964,2]
[313795347,1707726638362,-10226.05,0.00019644,3]
[313795349,1707726638371,-8521.71,0.00019644,3]
[313795350,1707726638380,-12271.26,0.00019645,3]
[313795352,1707726638388,-155.82074238,0.00019652,2]
[313795353,1707726638398,-3768.2619251,0.00019653,2]
[313795354,1707726638407,-244.96436459,0.00019654,2]
[313795355,1707726638416,-820.86834729,0.00019654,2]
[313795356,1707726638425,-2822.61727091,0.00019654,2]
[313795357,1707726638434,-500.0,0.00019654,2]
[313795358,1707726638443,-500.0,0.00019654,2]
[313795359,1707726638451,-500.0,0.00019654,2]
[313795360,1707726638461,-500.0,0.00019654,2]
[313795361,1707726638470,-500.0,0.00019654,2]
[313795362,1707726638479,-500.0,0.00019654,2]
[313795363,1707726638490,-500.0,0.00019654,2]
[313795364,1707726638499,-522.8619572,0.00019654,2]
[313795365,1707726638508,-917.02,0.00019654,2]
[313795366,1707726638517,-500.0,0.00019654,2]
[313795367,1707726638526,-500.0,0.00019654,2]
[313795368,1707726638536,-500.0,0.00019654,2]
[313795369,1707726638545,-500.0,0.00019654,2]
[313795370,1707726638565,-500.0,0.00019654,2]
[313795371,1707726638574,-500.0,0.00019654,2]
[313795372,1707726638583,-503.05896067,0.00019654,2]
[313795373,1707726638592,-835.67,0.00019654,2]
[313795374,1707726638602,-500.0,0.00019654,2]
[313795375,1707726638611,-1275.51,0.00019654,2]
[313795376,1707726638620,-5646.07,0.00019654,2]
[313795377,1707726638629,-500.0,0.00019654,2]
[313795378,1707726638638,-500.0,0.00019654,2]
[313795379,1707726638648,-500.0,0.00019654,2]
[313795380,1707726638656,-500.0,0.00019654,2]
[313795381,1707726638666,-4381.38,0.00019654,2]
[313795382,1707726638675,-500.0,0.00019654,2]
[313795383,1707726638684,-789.39,0.00019654,2]
[313795384,1707726638693,-556.8,0.00019654,2]
[313795385,1707726638702,-500.0,0.00019654,2]
[313795386,1707726638711,-4825.08,0.00019654,2]
[313795387,1707726638720,-500.0,0.00019654,2]
[313795388,1707726638729,-351.04616072,0.00019654,2]
[313795389,1707726638738,-500.0,0.00019654,2]
[313795390,1707726638747,-500.0,0.00019654,2]
[313795391,1707726638757,-500.0,0.00019654,2]
[313795392,1707726638766,-505.58413704,0.00019654,2]
[313795393,1707726638775,-500.0,0.00019654,2]
[313795394,1707726638784,-155.21777093,0.00019655,2]
[313795395,1707726638794,-181.61100377,0.00019655,2]
[313795396,1707726638803,-159.90776276,0.00019655,2]
[313795397,1707726638813,-214.75124216,0.00019655,2]
[313795398,1707726638822,-11843.35387919,0.00019655,2]
[313795399,1707726638831,-2833.31733552,0.00019655,2]
[313795400,1707726638840,-35.68191846,0.00019656,2]
[313795401,1707726638849,-651.85853467,0.00019656,2]
[313795402,1707726638858,-20319.13900264,0.00019656,2]
[313795403,1707726638991,-614.39673192,0.00019656,2]
[313795404,1707726639001,-500.0,0.00019656,2]
[313795405,1707726639011,-500.0,0.00019656,2]
[313795406,1707726639020,-500.0,0.00019656,2]
[313795407,1707726639030,-488.06015497,0.00019656,2]
[313795439,1707726644443,-500.0,0.00019456,2]
[313795440,1707726644453,-11.93984503,0.00019656,2]
[313795441,1707726644461,-365.55515596,0.00019656,2]
[313795442,1707726644499,-151.87054299,0.00019656,2]
[313795444,1707726644508,-500.0,0.00019656,2]
[313795445,1707726644517,-408.62945701,0.00019656,2]
[313795446,1707726644528,-91.37054299,0.00019656,2]
[313795447,1707726644537,-986.6,0.00019656,2]
[313795448,1707726644546,-500.0,0.00019656,2]
[313795449,1707726644555,-500.0,0.00019656,2]
[313795450,1707726644564,-500.0,0.00019656,2]
[313795451,1707726644686,-500.0,0.00019656,2]
[313795452,1707726644696,-939.57,0.00019656,2]
[313795453,1707726644705,-542.39,0.00019656,2]
[313795454,1707726644714,-829.98,0.00019656,2]
[313795455,1707726644723,-113.05532858,0.00019656,2]
[313795457,1707726645112,-386.94467142,0.00019656,2]
[313795458,1707726645122,-369.23532858,0.00019657,2]
[313795469,1707726646008,-130.76467142,0.00019657,2]
[313795471,1707726646017,-500.0,0.00019657,2]
[313795472,1707726646026,-500.0,0.00019657,2]
[313795474,1707726646036,-500.0,0.00019657,2]
[313795476,1707726646045,-500.0,0.00019657,2]
[313795478,1707726646054,-616.08997912,0.00019657,2]
[313795480,1707726646063,-174.01797206,0.00019657,2]
[313795481,1707726646075,-325.98202794,0.00019657,2]
[313795482,1707726646088,-500.0,0.00019657,2]
[313795483,1707726646097,-500.0,0.0001973,2]
[313795484,1707726646105,-500.0,0.0001973,2]
[313795485,1707726646115,-500.0,0.0001973,2]
[313795486,1707726646125,-867.6,0.0001973,2]
[313795487,1707726646134,-500.0,0.0001973,2]
[313795488,1707726646144,-404.17979639,0.0001973,2]
[313795489,1707726646153,-500.0,0.0001973,2]
[313795490,1707726646162,-8375.54,0.0001973,2]
[313795491,1707726646172,-1944.79,0.0001973,2]
[313795492,1707726646181,-500.0,0.0001973,2]
[313795493,1707726646191,-3126.35,0.0001973,2]
[313795494,1707726646200,-687.47,0.0001973,2]
[313795495,1707726646209,-4418.33,0.0001973,2]
[313795496,1707726646218,-390.77891299,0.0001973,2]
[313795497,1707726646228,-571.90310997,0.0001973,2]
[313795498,1707726646237,-569.23,0.0001973,2]
[313795499,1707726646246,-500.0,0.0001973,2]
[313795500,1707726646255,-207.46,0.0001973,2]
[313795501,1707726646264,-500.0,0.0001973,2]
[313795502,1707726646273,-571.44,0.0001973,2]
[313795503,1707726646282,-500.0,0.0001973,2]
[313795504,1707726646292,-500.0,0.0001973,2]
[313795505,1707726646301,-500.0,0.0001973,2]
[313795506,1707726646311,-156.03514188,0.00019735,2]
[313795507,1707726646320,-156.03514188,0.0001983,2]
[313795508,1707726646329,-500.0,0.00019928,2]
[313795509,1707726646338,-221.19583343,0.00019928,2]
[313795510,1707726646347,-500.0,0.00019928,2]
[313795511,1707726646355,-500.0,0.00019928,2]
[313795512,1707726646365,-500.0,0.00019928,2]
[313795513,1707726646374,-500.0,0.00019928,2]
[313795514,1707726646383,-500.0,0.00019928,2]
[313795515,1707726646392,-917.02,0.00019928,2]
[313795516,1707726646401,-500.0,0.00019928,2]
[313795517,1707726646410,-500.0,0.00019928,2]
[313795518,1707726646420,-500.0,0.00019928,2]
[313795519,1707726646429,-500.0,0.00019928,2]
[313795520,1707726646438,-500.0,0.00019928,2]
[313795521,1707726646447,-835.67,0.00019928,2]
[313795522,1707726646456,-500.0,0.00019928,2]
[313795523,1707726646465,-1275.51,0.00019928,2]
[313795524,1707726646474,-5646.07,0.00019928,2]
[313795525,1707726646484,-500.0,0.00019928,2]
[313795526,1707726646493,-381.9176512,0.00019928,2]
[313795527,1707726646502,-500.0,0.00019928,2]
[313795528,1707726646511,-500.0,0.00019928,2]
[313795529,1707726646520,-4381.38,0.00019928,2]
[313795530,1707726646529,-500.0,0.00019928,2]
[313795531,1707726646539,-789.39,0.00019928,2]
[313795532,1707726646548,-556.8,0.00019928,2]
[313795533,1707726646557,-461.52217714,0.00019928,2]
[313795534,1707726646566,-4825.08,0.00019928,2]
[313795535,1707726646575,-500.0,0.00019928,2]
[313795536,1707726646584,-500.0,0.00019928,2]
[313795537,1707726646593,-500.0,0.00019928,2]
[313795538,1707726646602,-500.0,0.00019928,2]
[313795539,1707726646611,-500.0,0.00019928,2]
[313795540,1707726646621,-500.0,0.0001993,2]
[313795541,1707726646630,-500.0,0.0001993,2]
[313795542,1707726646639,-500.0,0.0001993,2]
[313795543,1707726646648,-545.16212741,0.0001993,2]
[313795544,1707726646657,-500.0,0.0001993,2]
[313795545,1707726646666,-500.0,0.0001993,2]
[313795546,1707726646675,-986.6,0.0001993,2]
[313795547,1707726646684,-500.0,0.0001993,2]
[313795548,1707726646694,-500.0,0.0001993,2]
[313795549,1707726646702,-500.0,0.0001993,2]
[313795550,1707726646712,-939.57,0.0001993,2]
[313795551,1707726646721,-542.39,0.0001993,2]
[313795552,1707726646731,-829.98,0.0001993,2]
[313795553,1707726646739,-500.0,0.0001993,2]
[313795554,1707726646748,-500.0,0.00019931,2]
[313795555,1707726646757,-500.0,0.00019931,2]
[313795556,1707726646767,-500.0,0.00019931,2]
[313795557,1707726646776,-528.45511969,0.00019931,2]
[313795558,1707726646785,-500.0,0.00019931,2]
[313795559,1707726646795,-763.92844602,0.00019935,2]
[313795560,1707726646804,-742.04082584,0.0002,2]
[313795561,1707726646814,-1000.0,0.0002,20]
[313795562,1707726646823,-1201.92575629,0.0002,2]
[313795563,1707726646832,-682.90825132,0.0002,2]
[313795564,1707726646841,-500.0,0.00020004,2]
[313795565,1707726646851,-500.0,0.00020004,2]
[313795566,1707726646859,-867.6,0.00020004,2]
[313795567,1707726646869,-8375.54,0.00020004,2]
[313795568,1707726646878,-1944.79,0.00020004,2]
[313795569,1707726646887,-500.0,0.00020004,2]
[313795570,1707726646896,-3126.35,0.00020004,2]
[313795571,1707726646905,-687.47,0.00020004,2]
[313795572,1707726646914,-4418.33,0.00020004,2]
[313795573,1707726646923,-569.23,0.00020004,2]
[313795574,1707726646932,-571.44,0.00020004,2]
[313795575,1707726646941,-500.0,0.00020004,2]
[313795576,1707726646950,-500.0,0.00020004,2]
[313795577,1707726646960,-500.0,0.00020004,2]
[313795578,1707726646970,-166.666666,0.00020076,2]
[313795579,1707726646979,-593.52,0.00020202,2]
[313795580,1707726646988,-500.0,0.00020202,2]
[313795581,1707726646998,-500.0,0.00020202,2]
[313795582,1707726647006,-626.8846234,0.00020202,2]
[313795583,1707726647016,-500.0,0.00020202,2]
[313795584,1707726647025,-500.0,0.00020202,2]
[313795585,1707726647035,-917.02,0.00020202,2]
[313795586,1707726647044,-500.0,0.00020202,2]
[313795587,1707726647056,-500.0,0.00020202,2]
[313795588,1707726647065,-500.0,0.00020202,2]
[313795589,1707726647075,-835.67,0.00020202,2]
[313795590,1707726647089,-500.0,0.00020202,2]
[313795591,1707726647099,-1275.51,0.00020202,2]
[313795592,1707726647108,-5646.07,0.00020202,2]
[313795593,1707726647117,-500.0,0.00020202,2]
[313795594,1707726647128,-500.0,0.00020202,2]
[313795595,1707726647138,-4381.38,0.00020202,2]
[313795596,1707726647147,-500.0,0.00020202,2]
[313795597,1707726647157,-789.39,0.00020202,2]
[313795598,1707726647166,-556.8,0.00020202,2]
[313795599,1707726647176,-4825.08,0.00020202,2]
[313795600,1707726647185,-500.0,0.00020202,2]
[313795601,1707726647194,-500.0,0.00020202,2]
[313795602,1707726647203,-500.0,0.00020202,2]
[313795603,1707726647213,-500.0,0.00020202,2]
[313795604,1707726647223,-500.0,0.00020204,2]
[313795605,1707726647232,-303.46,0.00020204,2]
[313795606,1707726647241,-513.34469106,0.00020204,2]
[313795607,1707726647251,-986.6,0.00020204,2]
[313795608,1707726647260,-620.97644391,0.00020204,2]
[313795609,1707726647270,-219.71394389,0.00020204,2]
[313795610,1707726647279,-500.0,0.00020204,2]
[313795611,1707726647288,-939.57,0.00020204,2]
[313795612,1707726647297,-542.39,0.00020204,2]
[313795613,1707726647306,-829.98,0.00020204,2]
[313795614,1707726647315,-500.0,0.00020205,2]
[313795615,1707726647324,-500.0,0.00020205,2]
[313795616,1707726647332,-560.33,0.00020205,2]
[313795617,1707726647341,-500.0,0.00020205,2]
[313795618,1707726647350,-500.0,0.00020278,2]
[313795619,1707726647359,-867.6,0.00020278,2]
[313795620,1707726647368,-8375.54,0.00020278,2]
[313795621,1707726647377,-1944.79,0.00020278,2]
[313795622,1707726647386,-500.0,0.00020278,2]
[313795623,1707726647395,-3126.35,0.00020278,2]
[313795624,1707726647404,-687.47,0.00020278,2]
[313795625,1707726647413,-4418.33,0.00020278,2]
[313795626,1707726647422,-569.23,0.00020278,2]
[313795627,1707726647431,-571.44,0.00020278,2]
[313795628,1707726647440,-500.0,0.00020278,2]
[313795629,1707726647450,-500.0,0.00020278,2]
[313795630,1707726647458,-500.0,0.00020278,2]
[313795631,1707726647467,-200.0,0.00020428,2]
[313795632,1707726647476,-1133.22559212,0.00020452,2]
[313795633,1707726647485,-500.0,0.00020476,2]
[313795634,1707726647494,-229.0,0.00020476,2]
[313795635,1707726647503,-917.02,0.00020476,2]
[313795636,1707726647512,-835.67,0.00020476,2]
[313795637,1707726647521,-1275.51,0.00020476,2]
[313795638,1707726647531,-5646.07,0.00020476,2]
[313795639,1707726647541,-176.76,0.00020476,2]
[313795640,1707726647550,-4381.38,0.00020476,2]
[313795641,1707726647559,-789.39,0.00020476,2]
[313795642,1707726647568,-556.8,0.00020476,2]
[313795643,1707726647577,-4825.08,0.00020476,2]
[313795644,1707726647586,-500.0,0.00020476,2]
[313795645,1707726647595,-166.61,0.00020476,2]
[313795646,1707726647605,-352.88,0.00020478,2]
[313795647,1707726647615,-986.6,0.00020478,2]
[313795648,1707726647624,-939.57,0.00020478,2]
[313795649,1707726647632,-542.39,0.00020478,2]
[313795650,1707726647641,-829.98,0.00020478,2]
[313795651,1707726647650,-500.0,0.00020479,2]
[313795652,1707726647659,-500.0,0.00020479,2]
[313795653,1707726647668,-5000.0,0.00020498,2]
[313795654,1707726647678,-5000.0,0.00020499,2]
[313795655,1707726647687,-1561.02788995,0.00020499,2]
[313795656,1707726647697,-5000.0,0.000205,2]
[313795657,1707726647706,-5000.0,0.00020501,2]
[313795658,1707726647714,-3893.29459974,0.00020501,2]
[313795659,1707726647723,-478.51348655,0.00020501,2]
[313795660,1707726647732,-1619.16516809,0.00020501,2]
[313795661,1707726647741,-152.50184058,0.00020501,2]
[313795662,1707726647750,-151.0,0.00020519,2]
[313795663,1707726647759,-166.666666,0.00020524,2]
[313795664,1707726647768,-500.0,0.00020552,2]
[313795665,1707726647777,-867.6,0.00020552,2]
[313795666,1707726647786,-8375.54,0.00020552,2]
[313795667,1707726647795,-1944.79,0.00020552,2]
[313795668,1707726647804,-500.0,0.00020552,2]
[313795669,1707726647813,-3126.35,0.00020552,2]
[313795670,1707726647822,-687.47,0.00020552,2]
[313795671,1707726647831,-4418.33,0.00020552,2]
[313795672,1707726647840,-569.23,0.00020552,2]
[313795673,1707726647849,-571.44,0.00020552,2]
[313795674,1707726647858,-280.52,0.00020552,2]
[313795675,1707726647867,-500.0,0.00020552,2]
[313795676,1707726647876,-500.0,0.0002075,2]
[313795677,1707726647885,-917.02,0.0002075,2]
[313795678,1707726647894,-835.67,0.0002075,2]
[313795679,1707726647903,-1275.51,0.0002075,2]
[313795680,1707726647912,-5646.07,0.0002075,2]
[313795681,1707726647921,-4381.38,0.0002075,2]
[313795682,1707726647930,-789.39,0.0002075,2]
[313795683,1707726647939,-556.8,0.0002075,2]
[313795684,1707726647948,-4825.08,0.0002075,2]
[313795685,1707726647957,-500.0,0.0002075,2]
[313795686,1707726647966,-3153.5932687,0.00020752,2]
[313795687,1707726647975,-986.6,0.00020752,2]
[313795688,1707726647984,-939.57,0.00020752,2]
[313795689,1707726647993,-542.39,0.00020752,2]
[313795690,1707726648002,-829.98,0.00020752,2]
[313795691,1707726648012,-500.0,0.00020753,2]
[313795692,1707726648021,-500.0,0.00020753,2]
[313795693,1707726648031,-217.46708564,0.00020822,2]
[313795694,1707726648040,-403.18394069,0.00020822,2]
[313795695,1707726648050,-270.13974463,0.00020822,2]
[313795696,1707726648059,-500.0,0.00020822,2]
[313795697,1707726648069,-500.0,0.00020822,2]
[313795698,1707726648079,-174.00739868,0.00020822,2]
[313795699,1707726648092,-500.0,0.00020822,2]
[313795700,1707726648102,-500.0,0.00020822,2]
[313795701,1707726648112,-500.0,0.00020822,2]
[313795702,1707726648123,-500.0,0.00020822,2]
[313795703,1707726648133,-500.0,0.00020822,2]
[313795704,1707726648142,-500.0,0.00020822,2]
[313795705,1707726648151,-500.0,0.00020822,2]
[313795706,1707726648162,-500.0,0.00020822,2]
[313795707,1707726648171,-500.0,0.00020822,2]
[313795708,1707726648180,-500.0,0.00020822,2]
[313795709,1707726648189,-500.0,0.00020822,2]
[313795710,1707726648199,-500.0,0.00020822,2]
[313795711,1707726648208,-500.0,0.00020822,2]
[313795712,1707726648217,-500.0,0.00020822,2]
[313795713,1707726648226,-500.0,0.00020822,2]
[313795714,1707726648235,-500.0,0.00020822,2]
[313795715,1707726648245,-500.0,0.00020822,2]
[313795716,1707726648255,-500.0,0.00020822,2]
[313795717,1707726648264,-500.0,0.00020822,2]
[313795718,1707726648273,-500.0,0.00020822,2]
[313795719,1707726648283,-500.0,0.00020822,2]
[313795720,1707726648292,-500.0,0.00020822,2]
[313795721,1707726648302,-500.0,0.00020822,2]
[313795722,1707726648312,-500.0,0.00020822,2]
[313795723,1707726648322,-500.0,0.00020822,2]
[313795724,1707726648331,-500.0,0.00020822,2]
[313795725,1707726648340,-589.8154794,0.00020822,2]
[313795726,1707726648349,-500.0,0.00020822,2]
[313795727,1707726648358,-500.0,0.00020822,2]
[313795728,1707726648367,-500.0,0.00020822,2]
[313795729,1707726648376,-500.0,0.00020822,2]
[313795730,1707726648385,-500.0,0.00020822,2]
[313795731,1707726648394,-500.0,0.00020822,2]
[313795732,1707726648403,-500.0,0.00020822,2]
[313795733,1707726648412,-500.0,0.00020822,2]
[313795734,1707726648421,-500.0,0.00020822,2]
[313795735,1707726648430,-500.0,0.00020822,2]
[313795736,1707726648439,-500.0,0.00020822,2]